bitfinex-derivatives/quotes_SOLF0:USTF0_20241107
["timestamp","ask_amount","ask_price","bid_price","bid_amount"]
[1730993960275,8.04686898,190.96,190.91,8.04686898]
[1730993960677,1.8838,190.95,190.91,8.04686898]
[1730993961075,8.04686898,190.94,190.84,56.94507604]
[1730993961281,1.9914,190.94,190.88,8.04686898]
[1730993961481,1.9914,190.94,190.9,8.04686898]
[1730993962686,1.9914,190.94,190.89,2.6175]
[1730993962890,1.9914,190.94,190.91,8.04686898]
[1730993963786,1.9914,190.94,190.93,8.04686898]
[1730993964183,1.8038,190.99,190.93,8.04686898]
[1730993964388,1.8038,190.99,190.95,8.04686898]
[1730993964886,1.8038,190.99,190.93,8.04686898]
[1730993965394,1.8038,190.99,190.84,3.52]
[1730993965584,1.8038,190.99,190.93,8.04686898]
[1730993966387,0.06,190.98,190.93,8.04686898]
[1730993967887,0.06,190.98,190.95,8.04686898]
[1730993968291,0.06,190.98,190.94,8.04686898]
[1730993969490,2.6165,190.97,190.9,3.52]
[1730993969687,2.6165,190.97,190.94,8.04686898]
[1730993970689,2.6763,190.98,190.94,8.04686898]
[1730993970895,0.06,190.98,190.94,8.04686898]
[1730993971189,2.6763,190.98,190.94,8.04686898]
[1730993971389,2.6763,190.98,190.96,8.04686898]
[1730993971390,0.06,190.98,190.96,8.04686898]
[1730993972884,2.6165,190.97,190.94,8.04686898]
[1730993973091,2.6165,190.97,190.9,3.52]
[1730993973291,0.06,190.98,190.92,8.04686898]
[1730993973987,2.6167,190.96,190.92,8.04686898]
[1730993974595,2.6763,190.98,190.94,8.04686898]
[1730993975497,0.06,190.98,190.94,8.04686898]
[1730993976090,0.06,190.98,190.94,10.66376898]
[1730993976793,2.6764,190.98,190.92,3.5]
[1730993976993,0.06,190.98,190.93,8.04686898]
[1730993977193,0.06,190.98,190.96,2.6166]
[1730993977389,1.8066,191.01,190.95,8.04686898]
[1730993977696,4.4225,191.01,190.96,2.6166]
[1730993977894,1.8066,191.01,190.95,8.04686898]
[1730993978094,1.9233,191.04,190.95,8.04686898]
[1730993978300,2.6162,191.0,190.95,8.04686898]
[1730993978594,1.9233,191.04,190.99,8.04686898]
[1730993978986,2.6158,191.02,190.98,2.6162]
[1730993979190,2.6158,191.02,190.98,8.04686898]
[1730993980387,0.07,191.03,190.97,2.6164]
[1730993980589,8.04686898,191.02,190.97,8.04686898]
[1730993981589,2.6161,191.0,190.97,8.04686898]
[1730993981990,2.6161,191.0,190.86,2.60886154]
[1730993981991,8.04686898,191.0,190.92,3.5]
[1730993982194,2.6163,190.99,190.94,8.04686898]
[1730993982796,2.6163,190.99,190.95,8.04686898]
[1730993984708,2.6163,190.99,190.94,2.6168]
[1730993984709,2.6165,190.97,190.94,8.04686898]
[1730993984908,0.07,191.03,190.96,8.04686898]
[1730993985108,8.04686898,191.02,190.96,8.04686898]
[1730993985807,8.04686898,191.02,190.85,5.33355669]
[1730993986005,8.04686898,191.02,190.84,5.2365]
[1730993986006,8.04686898,191.02,190.95,2.6167]
[1730993986207,0.07,191.03,190.94,8.04686898]
[1730993986398,0.07,191.03,190.96,8.04686898]
[1730993986605,2.6159,191.02,190.97,2.6164]
[1730993986811,8.11686898,191.03,190.96,8.04686898]
[1730993987010,0.07,191.03,190.96,8.04686898]
[1730993987311,2.6158,191.02,190.97,2.6164]
[1730993987511,2.6158,191.02,190.98,8.04686898]
[1730993987905,0.07,191.03,190.98,8.04686898]
[1730993988111,2.6857,191.03,190.98,10.66306898]
[1730993988624,2.6857,191.03,190.99,2.6161]
[1730993988922,2.6857,191.03,190.98,8.04686898]
[1730993989109,10.73256898,191.03,190.98,8.04686898]
[1730993989312,2.6857,191.03,190.98,10.66316898]
[1730993989712,2.6857,191.03,191.0,8.04686898]
[1730993989918,2.6158,191.02,190.98,2.6163]
[1730993990219,0.07,191.03,191.0,8.04686898]
[1730993991512,2.6858,191.03,191.0,8.04686898]
[1730993993415,0.07,191.03,191.0,8.04686898]
[1730993993615,2.6158,191.02,191.0,8.04686898]
[1730993995612,1.8693,191.05,191.0,8.04686898]
[1730993995917,0.1,191.04,191.0,8.04686898]
[1730993996319,2.6157,191.03,191.0,8.04686898]
[1730993997225,0.1,191.04,191.02,8.04686898]
[1730993997520,0.1,191.04,191.03,8.04686898]
[1730993999111,0.1,191.04,191.02,8.04686898]
[1730993999318,0.1,191.04,191.03,8.04686898]
[1730993999624,0.1,191.04,191.03,14.16246898]
[1730993999826,0.1,191.04,191.03,10.66246898]
[1730994000019,0.1,191.04,191.03,14.16246898]
[1730994000528,0.65729,191.09,191.07,2.615]
[1730994000717,8.70415898,191.09,190.97,5.4517]
[1730994000920,0.65729,191.09,191.05,8.04686898]
[1730994001121,0.65729,191.09,191.06,8.04686898]
[1730994001420,0.65729,191.09,191.08,8.04686898]
[1730994001920,0.65729,191.09,191.07,3.5]
[1730994002116,0.65729,191.09,191.08,10.66186898]
[1730994002319,0.65729,191.09,191.08,8.04686898]
[1730994002726,0.65729,191.09,191.07,6.1151]
[1730994002923,0.65729,191.09,191.08,8.04686898]
[1730994003425,0.65729,191.09,191.07,8.04686898]
[1730994004028,8.70415898,191.09,190.88,7.87147455]
[1730994004218,8.04686898,191.07,191.01,8.04686898]
[1730994004918,2.6163,190.99,190.92,1.2183]
[1730994005231,0.65729,191.09,190.97,8.04686898]
[1730994005428,0.65729,191.09,190.92,1.2183]
[1730994005429,0.65729,191.09,191.07,8.04686898]
[1730994006131,1.8959,191.19,191.07,8.04686898]
[1730994006327,1.8959,191.19,190.99,2.63874222]
[1730994006328,1.8959,191.19,191.14,8.04686898]
[1730994006523,1.8959,191.19,191.16,8.04686898]
[1730994006725,1.8959,191.19,191.14,8.04686898]
[1730994007032,3.5,191.27,191.14,8.04686898]
[1730994007236,8.04686898,191.22,191.16,8.04686898]
[1730994007431,1.8959,191.25,191.16,8.04686898]
[1730994007732,2.6133,191.2,191.16,8.04686898]
[1730994007927,8.04686898,191.21,191.1,3.5]
[1730994008119,10.66006898,191.21,191.1,3.5]
[1730994008326,8.04686898,191.22,191.17,8.04686898]
[1730994008928,2.6133,191.21,191.17,8.04686898]
[1730994009522,2.6134,191.2,191.13,3.5]
[1730994009729,3.806,191.24,191.16,8.04686898]
[1730994009936,8.04686898,191.23,191.16,8.04686898]
[1730994010138,2.6134,191.2,191.16,8.04686898]
[1730994010429,0.83337,191.19,191.16,8.04686898]
[1730994011532,3.44687,191.19,191.16,8.04686898]
[1730994012544,0.83337,191.19,191.18,8.04686898]
[1730994013329,3.44677,191.19,191.18,8.04686898]
[1730994015343,0.83337,191.19,191.18,8.04686898]
[1730994016345,0.83337,191.19,191.15,2.614]
[1730994016538,0.83337,191.19,191.18,8.04686898]
[1730994019945,3.44677,191.19,191.18,8.04686898]
[1730994020140,0.83337,191.19,191.18,8.04686898]
[1730994020339,0.83337,191.19,191.11,3.5]
[1730994020749,8.04686898,191.18,191.12,8.04686898]
[1730994021552,2.6141,191.14,191.12,8.04686898]
[1730994021954,0.83337,191.19,191.12,8.04686898]
[1730994022151,8.04686898,191.18,191.13,8.04686898]
[1730994022453,0.83337,191.19,191.13,8.04686898]
[1730994022658,2.6136,191.18,191.15,8.04686898]
[1730994023951,2.0015,191.22,191.17,8.04686898]
[1730994024149,8.04686898,191.23,191.17,8.04686898]
[1730994024554,2.6134,191.2,191.17,8.04686898]
[1730994025954,2.6135,191.19,191.17,8.04686898]
[1730994026650,8.04686898,191.24,191.17,8.04686898]
[1730994027156,2.6133,191.21,191.17,8.04686898]
[1730994027551,2.6135,191.19,191.14,3.5]
[1730994027752,2.6135,191.19,191.17,8.04686898]
[1730994028051,1.8665,191.25,191.13,3.5]
[1730994028257,2.6136,191.18,191.17,8.04686898]
[1730994028449,1.8665,191.25,191.17,8.04686898]
[1730994028761,2.6134,191.2,191.17,8.04686898]
[1730994029647,2.6135,191.19,191.13,2.6142]
[1730994029848,2.6135,191.19,191.17,8.04686898]
[1730994030654,1.8665,191.25,191.05,1.9612]
[1730994030655,8.04686898,191.22,191.05,1.9612]
[1730994030848,8.04686898,191.18,191.05,5.4612]
[1730994031053,2.6138,191.17,191.12,8.04686898]
[1730994031252,2.6138,191.17,191.05,5.4612]
[1730994031253,2.6138,191.17,191.14,8.04686898]
[1730994031553,1.86,191.22,191.16,8.04686898]
[1730994031554,8.04686898,191.21,191.16,8.04686898]
[1730994031754,8.04686898,191.2,191.15,8.04686898]
[1730994032660,2.6137,191.18,191.15,8.04686898]
[1730994033051,2.6136,191.19,191.15,8.04686898]
[1730994033356,1.86,191.22,191.17,8.04686898]
[1730994033661,2.6134,191.2,191.17,8.04686898]
[1730994034054,1.86,191.22,191.13,2.6142]
[1730994034260,2.6135,191.19,191.17,8.04686898]
[1730994034959,2.614,191.15,191.08,2.6148]
[1730994035158,2.614,191.15,191.13,8.04686898]
[1730994035560,2.6137,191.18,191.14,8.04686898]
[1730994036159,2.6138,191.17,191.14,8.04686898]
[1730994036956,8.04686898,191.19,191.07,3.5]
[1730994037161,8.04686898,191.19,191.13,8.04686898]
[1730994037464,2.6141,191.15,191.08,2.6148]
[1730994037662,8.04686898,191.18,191.11,8.04686898]
[1730994037965,2.6139,191.16,191.11,8.04686898]
[1730994038159,8.04686898,191.18,191.13,8.04686898]
[1730994038462,2.614,191.15,191.13,8.04686898]
[1730994039263,2.614,191.16,191.13,8.04686898]
[1730994039460,8.04686898,191.2,191.13,8.04686898]
[1730994039859,1.8665,191.25,191.15,8.04686898]
[1730994040164,1.8665,191.25,191.07,3.5]
[1730994040364,2.6137,191.18,191.16,8.04686898]
[1730994042762,8.04686898,191.19,191.13,8.04686898]
[1730994043060,8.04686898,191.21,191.15,8.04686898]
[1730994043264,2.6139,191.16,191.15,8.04686898]
[1730994044054,5.3665,191.25,191.07,3.5]
[1730994044260,2.6141,191.15,191.13,8.04686898]
[1730994044868,2.6141,191.14,191.13,8.04686898]
[1730994046051,2.6139,191.16,191.13,8.04686898]
[1730994047062,2.6138,191.17,191.13,8.04686898]
[1730994047463,2.6138,191.17,191.15,8.04686898]
[1730994047761,5.3665,191.25,191.15,8.04686898]
[1730994048067,2.6133,191.21,191.16,8.04686898]
[1730994049265,2.6133,191.21,191.18,8.04686898]
[1730994053470,2.6132,191.21,191.18,8.04686898]
[1730994053774,2.0079,191.28,191.2,8.04686898]
[1730994053968,8.04686898,191.27,191.22,8.04686898]
[1730994054155,2.6129,191.23,191.21,8.04686898]
[1730994056169,8.04686898,191.26,191.21,8.04686898]
[1730994056364,2.613,191.22,191.21,8.04686898]
[1730994056669,8.04686898,191.26,191.21,8.04686898]
[1730994056964,2.613,191.23,191.22,8.04686898]
[1730994057264,8.04686898,191.24,191.2,8.04686898]
[1730994057664,2.613,191.22,191.2,8.04686898]
[1730994058464,2.6125,191.26,191.2,8.04686898]
[1730994058669,2.6125,191.26,191.23,8.04686898]
[1730994059369,2.6127,191.25,191.23,8.04686898]
[1730994059574,8.04686898,191.28,191.16,3.5106]
[1730994059763,8.04686898,191.28,191.22,8.04686898]
[1730994059963,2.6125,191.27,191.23,8.04686898]
[1730994060163,8.04686898,191.28,191.23,8.04686898]
[1730994060569,2.6128,191.24,191.23,8.04686898]
[1730994061359,8.35570898,191.29,191.23,8.04686898]
[1730994061570,8.35570898,191.29,191.26,8.04686898]
[1730994061571,0.30884,191.29,191.26,8.04686898]
[1730994061769,2.6124,191.27,191.25,8.04686898]
[1730994062276,2.6124,191.27,191.26,8.04686898]
[1730994062469,10.9806309,191.29,191.25,8.04686898]
[1730994062772,8.04686898,191.28,191.24,8.04686898]
[1730994062968,2.6127,191.25,191.24,8.04686898]
[1730994063169,8.04686898,191.26,191.16,3.5106]
[1730994063367,2.613,191.22,191.16,6.1243]
[1730994063568,2.613,191.22,191.21,8.04686898]
[1730994063877,2.6125,191.26,191.21,10.66006898]
[1730994064067,2.93376192,191.29,191.23,8.04686898]
[1730994064268,8.04686898,191.27,191.23,8.04686898]
[1730994064470,2.6129,191.23,191.22,8.04686898]
[1730994065171,2.93376192,191.29,191.22,8.04686898]
[1730994065172,2.6128,191.24,191.22,8.04686898]
[1730994065377,2.6128,191.24,191.23,8.04686898]
[1730994066482,8.04686898,191.3,191.23,8.04686898]
[1730994066683,8.04686898,191.28,191.23,8.04686898]
[1730994066871,2.6128,191.24,191.23,8.04686898]
[1730994067569,8.04686898,191.23,191.16,8.04686898]
[1730994068278,8.04686898,191.23,191.17,8.04686898]
[1730994068672,8.04686898,191.21,191.15,8.04686898]
[1730994068871,2.6138,191.17,191.15,8.04686898]
[1730994069284,2.6128,191.25,191.17,2.6137]
[1730994069474,1.8561,191.26,191.16,3.5]
[1730994069475,8.04686898,191.31,191.24,8.04686898]
[1730994069778,8.04686898,191.29,191.24,8.04686898]
[1730994070173,8.04686898,191.29,191.23,8.04686898]
[1730994070680,1.7417,191.32,191.25,8.04686898]
[1730994070979,8.04686898,191.3,191.25,8.04686898]
[1730994071181,8.04686898,191.29,191.22,3.5]
[1730994071579,8.04686898,191.29,191.24,8.04686898]
[1730994071777,2.6124,191.28,191.24,8.04686898]
[1730994072282,8.04686898,191.3,191.21,3.5]
[1730994072478,1.7417,191.32,191.22,8.04686898]
[1730994072678,8.04686898,191.28,191.22,8.04686898]
[1730994073374,2.6127,191.25,191.22,8.04686898]
[1730994073687,12.54563554,191.3,191.18,12.54563554]
[1730994074483,2.6127,191.25,191.18,12.54563554]
[1730994074986,12.54563554,191.3,191.18,12.54563554]
[1730994075189,2.6126,191.26,191.18,12.54563554]
[1730994075370,3.6155,191.31,191.21,12.54563554]
[1730994075686,2.6124,191.27,191.21,12.54563554]
[1730994075886,3.4742,191.34,191.21,12.54563554]
[1730994076073,16.01983554,191.34,191.21,12.54563554]
[1730994076877,1.7026,191.38,191.24,12.54563554]
[1730994076878,2.5919764,191.36,191.24,12.54563554]
[1730994077078,3.5198,191.38,191.26,12.54563554]
[1730994077279,16.06543554,191.38,191.26,12.54563554]
[1730994077479,2.66132065,191.37,191.26,12.54563554]
[1730994077683,0.52851,191.39,191.25,4.15329314]
[1730994077983,6.15562274,191.55,191.38,12.54563554]
[1730994078184,4.875,191.54,191.38,12.54563554]
[1730994078377,4.875,191.54,191.4,12.54563554]
[1730994078775,12.54563554,191.51,191.4,12.54563554]
[1730994079173,4.875,191.54,191.4,12.54563554]
[1730994079492,12.54563554,191.53,191.4,12.54563554]
[1730994079789,4.875,191.54,191.4,12.54563554]
[1730994079982,12.54563554,191.51,191.4,12.54563554]
[1730994080177,4.875,191.54,191.4,12.54563554]
[1730994080390,2.6092,191.5,191.43,12.54563554]
[1730994080576,4.875,191.54,191.43,12.54563554]
[1730994080782,12.54563554,191.53,191.43,12.54563554]
[1730994081074,12.54563554,191.51,191.4,3.48]
[1730994081478,2.6092,191.5,191.4,3.48]
[1730994081676,17.42063554,191.54,191.41,12.54563554]
[1730994082083,12.54563554,191.52,191.41,12.54563554]
[1730994082783,2.6095,191.48,191.41,12.54563554]
[1730994083184,2.6094,191.49,191.41,12.54563554]
[1730994083878,2.6095,191.48,191.41,12.54563554]
[1730994084087,4.875,191.54,191.41,12.54563554]
[1730994084279,4.875,191.54,191.44,12.54563554]
[1730994084478,2.6092,191.5,191.44,12.54563554]
[1730994085087,4.875,191.54,191.44,12.54563554]
[1730994085389,4.875,191.54,191.44,16.02563554]
[1730994085684,4.875,191.54,191.44,12.54563554]
[1730994085890,2.6093,191.5,191.44,12.54563554]
[1730994086390,2.6091,191.51,191.44,12.54563554]
[1730994086982,2.6093,191.5,191.44,12.54563554]
[1730994087182,1.5655,191.54,191.42,16.02563554]
[1730994087582,1.5655,191.54,191.44,12.54563554]
[1730994088085,1.5655,191.54,191.47,12.54563554]
[1730994088689,1.5655,191.54,191.44,12.54563554]
[1730994089092,3.3277,191.57,191.44,12.54563554]
[1730994089283,2.6092,191.51,191.44,12.54563554]
[1730994089686,2.6092,191.51,191.44,16.02563554]
[1730994089994,17.52743554,191.57,191.44,16.02563554]
[1730994090287,12.54563554,191.66,191.53,12.54563554]
[1730994090487,12.54563554,191.63,191.53,12.54563554]
[1730994090692,12.54563554,191.63,191.51,3.48]
[1730994090693,3.48,191.66,191.51,3.48]
[1730994090890,3.48,191.73,191.55,12.54563554]
[1730994091095,12.54563554,191.68,191.55,12.54563554]
[1730994091685,2.6072,191.66,191.56,2.6083]
[1730994091885,12.54563554,191.68,191.56,2.6083]
[1730994092090,12.54563554,191.68,191.55,12.54563554]
[1730994092292,2.6073,191.65,191.56,2.6084]
[1730994092492,2.6073,191.65,191.55,12.54563554]
[1730994092996,2.6073,191.65,191.52,3.2277]
[1730994092997,2.6073,191.65,191.58,12.54563554]
[1730994093192,2.6073,191.65,191.58,16.06563554]
[1730994093698,2.6074,191.64,191.58,16.06563554]
[1730994093888,3.52,191.72,191.58,16.06563554]
[1730994094199,12.54563554,191.7,191.58,16.06563554]
[1730994094900,12.54563554,191.7,191.58,3.52]
[1730994095095,2.607,191.67,191.58,16.06563554]
[1730994095405,12.54563554,191.7,191.58,16.06563554]
[1730994095793,2.6071,191.66,191.58,16.06563554]
[1730994096487,12.54563554,191.7,191.58,16.06563554]
[1730994096688,2.6072,191.65,191.58,16.06563554]
[1730994096893,2.6072,191.65,191.6,12.54563554]
[1730994097200,8.4396,191.72,191.12,32.00972321]
[1730994097201,133.0,191.42,191.12,32.00972321]
[1730994097495,133.0,191.42,191.01,46.77614276]
[1730994097496,15.73,191.11,190.0,37.6]
[1730994097697,15.73,190.97,190.2,3.1369]
[1730994097897,297.17549149,190.45,190.21,40.46625284]
[1730994098098,5.234,190.79,190.22,1.31135284]
[1730994098295,9.16523554,190.87,190.22,1.31135284]
[1730994098600,12.16643574,190.86,190.75,12.54563554]
[1730994098895,16.29088262,190.85,190.72,12.54563554]
[1730994099093,16.29088262,190.84,190.79,12.54563554]
[1730994099296,16.29088262,190.83,190.7,32.67939898]
[1730994099596,16.28992303,190.82,190.77,32.67939898]
[1730994099800,13.66912921,190.81,190.78,9.95748703]
[1730994100004,32.67939898,191.01,190.81,32.67939898]
[1730994100297,32.67939898,191.01,190.85,32.67939898]
[1730994100492,32.67939898,191.01,190.86,9.95748703]
[1730994100694,32.67939898,191.01,190.87,9.95748703]
[1730994100695,2.6165,190.97,190.87,9.95748703]
[1730994100894,32.67939898,191.01,190.88,9.95748703]
[1730994101096,64.3419057,191.08,190.89,9.95748703]
[1730994101288,2.6166,190.96,190.9,9.95748703]
[1730994101490,32.67939898,190.99,190.91,9.95748703]
[1730994101698,32.67939898,191.03,190.92,9.95748703]
[1730994101899,81.34130468,191.08,190.81,32.67939898]
[1730994102102,81.34130468,191.08,190.86,32.67939898]
[1730994102297,2.6163,190.99,190.86,32.67939898]
[1730994102497,32.67939898,191.0,190.76,6.55676423]
[1730994102808,6.35059611,190.91,190.82,32.68006898]
[1730994103402,2.6167,190.96,190.82,32.68006898]
[1730994103603,6.34985219,190.92,190.82,32.68006898]
[1730994103897,2.61924458,190.91,190.82,32.68006898]
[1730994104104,2.61924458,190.9,190.82,32.68006898]
[1730994104296,2.61924458,190.89,190.82,32.68006898]
[1730994104502,32.68006898,191.01,190.82,32.68006898]
[1730994104503,2.61937669,190.88,190.82,32.68006898]
[1730994104797,2.61937669,190.87,190.82,32.68006898]
[1730994105003,2.61937669,190.86,190.76,44.21676423]
[1730994105204,6.33969223,190.9,190.82,2.6184]
[1730994105503,6.33969223,190.9,190.87,32.68006898]
[1730994105999,48.6619057,191.08,190.87,32.68006898]
[1730994106199,32.68006898,191.07,190.87,32.68006898]
[1730994106595,32.68006898,191.03,190.83,32.68006898]
[1730994106794,2.6165,190.97,190.83,32.68006898]
[1730994106995,32.68006898,191.07,190.9,32.68006898]
[1730994107393,48.6619057,191.08,190.93,32.13497755]
[1730994107590,3.3492,191.17,190.96,32.68006898]
[1730994107591,32.68006898,191.14,190.96,32.68006898]
[1730994107795,36.02926898,191.17,191.0,32.68006898]
[1730994108396,2.6142,191.14,191.0,32.68006898]
[1730994108602,3.3492,191.17,191.03,32.68006898]
[1730994108902,32.68006898,191.21,191.06,32.68006898]
[1730994109296,32.68006898,191.27,191.1,32.68006898]
[1730994109691,2.613,191.23,191.1,32.68006898]
[1730994109898,32.68006898,191.27,191.13,32.68006898]
[1730994110494,32.68006898,191.3,191.13,32.68006898]
[1730994110695,32.68006898,191.3,191.16,32.68006898]
[1730994111203,2.6127,191.25,191.16,32.68006898]
[1730994111395,32.68006898,191.3,191.13,32.68006898]
[1730994111598,32.68006898,191.27,191.13,32.68006898]
[1730994112198,32.68006898,191.3,191.13,32.68006898]
[1730994112904,32.68006898,191.26,191.09,32.68006898]
[1730994113502,3.2215,191.34,191.13,32.68006898]
[1730994113808,32.68006898,191.29,191.13,32.68006898]
[1730994114007,2.6132,191.21,191.1,32.68006898]
[1730994114207,32.68006898,191.26,191.1,32.68006898]
[1730994115299,32.68006898,191.23,191.06,32.68006898]
[1730994115509,32.68006898,191.23,190.87,17.3146]
[1730994115510,32.68006898,191.19,191.03,32.68006898]
[1730994115710,2.6146,191.11,191.03,32.68006898]
[1730994116205,32.68006898,191.16,191.0,32.68006898]
[1730994117499,32.68006898,191.13,190.97,32.68006898]
[1730994117909,2.6154,191.05,190.97,32.68006898]
[1730994118306,32.68006898,191.09,190.97,32.68006898]
[1730994118517,32.68006898,191.09,190.93,32.68006898]
[1730994118810,32.68006898,191.06,190.93,32.68006898]
[1730994119201,32.68006898,191.06,190.89,32.68006898]
[1730994119710,2.617,190.94,190.86,32.68006898]
[1730994120402,79.96018216,191.19,190.89,32.68006898]
[1730994120603,32.68006898,191.04,190.89,32.68006898]
[1730994120808,2.6161,191.0,190.89,32.68006898]
[1730994121107,32.68006898,191.04,190.89,32.68006898]
[1730994121508,2.6162,190.99,190.92,32.68006898]
[1730994121706,32.68006898,191.08,190.92,32.68006898]
[1730994121908,2.6164,190.98,190.92,32.68006898]
[1730994122409,2.6156,191.04,190.92,32.68006898]
[1730994122615,32.68006898,191.05,190.89,32.68006898]
[1730994122910,48.60018216,191.19,190.83,32.68006898]
[1730994122911,32.68006898,190.98,190.83,32.68006898]
[1730994123207,2.6178,190.87,190.83,32.68006898]
[1730994123409,32.68006898,190.98,190.83,32.68006898]
[1730994123619,2.6177,190.88,190.83,32.68006898]
[1730994123905,2.6696,191.04,190.86,32.68006898]
[1730994124113,32.68006898,191.02,190.86,32.68006898]
[1730994124607,2.6164,190.98,190.86,32.68006898]
[1730994124813,32.68006898,191.02,190.86,32.68006898]
[1730994125018,1.6696,191.04,190.9,32.68006898]
[1730994125206,1.6696,191.04,190.93,32.68006898]
[1730994126004,1.6696,191.04,190.89,32.68006898]
[1730994126519,32.68006898,191.03,190.86,32.68006898]
[1730994127214,2.6166,190.97,190.86,32.68006898]
[1730994127513,32.68006898,191.03,190.86,32.68006898]
[1730994127714,2.6165,190.97,190.86,32.68006898]
[1730994127912,32.68006898,191.03,190.86,32.68006898]
[1730994128712,32.68006898,190.98,190.83,32.68006898]
[1730994129009,1.6696,191.04,190.83,32.68006898]
[1730994129318,2.6167,190.96,190.86,32.68006898]
[1730994129814,32.68006898,191.03,190.86,32.68006898]
[1730994130613,2.6163,190.98,190.86,32.68006898]
[1730994130911,221.466,191.44,190.93,31.0]
[1730994131116,2.6038,191.9,191.63,2.6074]
[1730994131412,37.7,191.94,191.63,32.68006898]
[1730994131613,7.8,192.19,191.6,35.28786898]
[1730994131614,2.6055,191.78,191.6,35.28786898]
[1730994131813,40.7661,191.93,191.6,32.68006898]
[1730994131814,32.68006898,191.83,191.6,32.68006898]
[1730994132111,2.6051,191.81,191.61,2.6077]
[1730994132415,2.6051,191.81,191.4,37.7]
[1730994132416,32.68006898,191.85,191.64,32.68006898]
[1730994132717,35.28416898,191.88,191.68,35.28676898]
[1730994132921,32.68006898,191.88,191.68,32.68006898]
[1730994133306,32.68006898,191.88,191.75,0.15820511]
[1730994133507,32.68006898,191.88,191.68,32.68006898]
[1730994133707,32.68006898,191.88,191.76,1.46158236]
[1730994133914,32.68006898,191.88,191.77,5.99655844]
[1730994134118,32.68006898,191.88,191.78,5.99655844]
[1730994134315,32.68006898,191.88,191.68,32.68006898]
[1730994134515,32.68006898,191.88,191.72,2.6061]
[1730994134716,32.68006898,191.88,191.68,32.68006898]
[1730994135421,32.68006898,191.88,191.72,2.6061]
[1730994136818,2.6037,191.91,191.73,32.68006898]
[1730994137212,35.74616898,191.93,191.68,32.68006898]
[1730994137413,32.68006898,191.89,191.72,32.68006898]
[1730994137712,5.6695,191.93,191.76,32.68006898]
[1730994137915,3.0661,191.93,191.76,32.68006898]
[1730994138422,3.0661,191.93,191.79,32.68006898]
[1730994139121,1.5305,192.09,191.82,32.68006898]
[1730994139323,32.68006898,192.01,191.82,32.68006898]
[1730994139718,1.5305,192.09,191.86,32.68006898]
[1730994139918,32.68006898,192.01,191.86,32.68006898]
[1730994140324,32.68006898,192.06,191.9,32.68006898]
[1730994141326,2.6013,192.08,192.06,0.54572541]
[1730994141919,35.28136898,192.08,192.06,0.54572541]
[1730994142313,35.28136898,192.08,191.92,32.68006898]
[1730994142314,2.6019,192.04,191.92,32.68006898]
[1730994142522,32.68006898,192.08,191.92,32.68006898]
[1730994142929,2.6013,192.09,191.92,32.68006898]
[1730994143128,32.68006898,192.12,191.95,32.68006898]
[1730994143817,2.6014,192.08,191.95,32.68006898]
[1730994144021,32.68006898,192.12,191.95,32.68006898]
[1730994145216,32.68006898,192.12,191.76,15.68]
[1730994145422,1.3241,192.19,191.85,2.6044]
[1730994145423,32.68006898,192.07,191.85,2.6044]
[1730994145623,32.68006898,192.07,191.92,32.68006898]
[1730994145929,32.68006898,192.1,191.92,32.68006898]
[1730994146125,2.6021,192.03,191.92,32.68006898]
[1730994146327,32.68006898,192.1,191.92,32.68006898]
[1730994146633,2.6017,192.06,191.92,32.68006898]
[1730994146817,2.6017,192.06,191.95,32.68006898]
[1730994147221,32.68006898,192.1,191.95,32.68006898]
[1730994147429,2.6016,192.07,191.95,32.68006898]
[1730994147728,32.68006898,192.1,191.92,32.68006898]
[1730994148323,2.6024,192.01,191.92,32.68006898]
[1730994148920,32.68006898,192.1,191.92,32.68006898]
[1730994149520,2.6021,192.03,191.92,32.68006898]
[1730994149723,32.68006898,192.1,191.95,32.68006898]
[1730994149923,1.3241,192.19,191.95,32.68006898]
[1730994149924,2.6008,192.12,191.95,32.68006898]
[1730994150223,32.68006898,192.14,191.95,32.68006898]
[1730994150634,2.6018,192.05,191.95,32.68006898]
[1730994150925,32.68006898,192.14,191.95,32.68006898]
[1730994151133,32.18806097,192.14,191.95,32.68006898]
[1730994151430,31.6969081,192.14,191.95,32.68006898]
[1730994151631,32.68006898,192.09,191.95,32.68006898]
[1730994152033,2.6019,192.04,191.95,32.68006898]
[1730994153035,2.6019,192.04,191.92,32.68006898]
[1730994153436,2.6022,192.02,191.92,32.68006898]
[1730994155128,2.6022,192.02,191.89,32.68006898]